bitfinex/quotes_BTCUSD_20241211
["timestamp","ask_amount","ask_price","bid_price","bid_amount"]
[1733936242352,0.598148,100650.0,100620.0,0.02537038]
[1733936242353,0.198728,100640.0,100620.0,0.02537038]
[1733936242562,0.198728,100640.0,100620.0,0.0798]
[1733936242808,0.397466,100640.0,100620.0,0.0798]
[1733936243020,0.198767,100620.0,100590.0,0.53946866]
[1733936243242,1.01826107,100630.0,100590.0,0.66505353]
[1733936243454,0.198777,100620.0,100590.0,0.66505453]
[1733936243664,0.49786445,100620.0,100590.0,0.46533708]
[1733936243877,0.10030845,100620.0,100590.0,0.46533708]
[1733936244320,0.10030845,100620.0,100590.0,0.56574508]
[1733936244321,0.29907845,100620.0,100590.0,0.56574508]
[1733936244532,0.29907845,100620.0,100590.0,0.56591047]
[1733936244748,0.156,100630.0,100600.0,0.2131547]
[1733936244959,0.006,100630.0,100610.0,0.2131417]
[1733936245169,0.002,100620.0,100610.0,0.1137527]
[1733936245401,0.002,100620.0,100600.0,0.33791808]
[1733936245606,0.49985245,100620.0,100590.0,0.22697339]
[1733936245855,0.30107645,100620.0,100590.0,0.44013409]
[1733936246058,0.62448207,100620.0,100590.0,0.44113409]
[1733936246269,0.62248207,100620.0,100590.0,0.44113409]
[1733936246475,0.62248207,100620.0,100600.0,0.001]
[1733936246927,0.82126307,100620.0,100590.0,0.22797339]
[1733936247139,0.82326307,100620.0,100590.0,0.22797339]
[1733936247562,0.62448207,100620.0,100590.0,0.08096539]
[1733936247770,0.19879,100610.0,100590.0,0.08096539]
[1733936247980,0.19879,100610.0,100590.0,0.07996539]
[1733936248191,0.19879,100610.0,100600.0,0.001]
[1733936248840,0.49789545,100610.0,100590.0,0.00016539]
[1733936249070,0.86832507,100610.0,100590.0,0.00316539]
[1733936249551,0.198807,100600.0,100590.0,0.00016539]
[1733936249770,0.29911545,100600.0,100590.0,0.00016539]
[1733936249979,0.29911545,100600.0,100590.0,0.00316539]
[1733936250616,0.10030845,100600.0,100590.0,0.00316539]
[1733936250829,0.10030845,100600.0,100590.0,0.00016539]
[1733936251063,0.10030845,100600.0,100590.0,0.00316539]
[1733936251274,0.10030845,100600.0,100590.0,0.00616539]
[1733936251908,0.10030845,100600.0,100590.0,0.00316539]
[1733936252116,0.10030845,100600.0,100590.0,0.00616539]
[1733936253366,0.2458,100610.0,100590.0,0.00316539]
[1733936253576,0.34610845,100610.0,100590.0,0.00316539]
[1733936253785,0.002,100600.0,100590.0,0.00316539]
[1733936254134,0.30111545,100600.0,100590.0,0.00016539]
[1733936254333,0.30111545,100600.0,100590.0,0.00116539]
[1733936255079,0.74644554,100600.0,100590.0,0.00116539]
[1733936255289,0.82344554,100600.0,100590.0,0.00116539]
[1733936255495,0.65274507,100600.0,100590.0,0.00116539]
[1733936255930,0.65074507,100600.0,100590.0,0.00116539]
[1733936256142,0.65074507,100600.0,100590.0,0.00216539]
[1733936256548,0.65074507,100600.0,100590.0,0.00116539]
[1733936256752,0.65274507,100600.0,100590.0,0.00116539]
[1733936257386,0.82344554,100600.0,100590.0,0.00116539]
[1733936258047,0.97190149,100600.0,100590.0,0.00116539]
[1733936258292,0.92021592,100600.0,100590.0,0.00116539]
[1733936259224,0.77021592,100600.0,100590.0,0.00116539]
[1733936259431,0.74951545,100600.0,100590.0,0.00116539]
[1733936259641,0.85114507,100600.0,100590.0,0.00116539]
[1733936259850,0.80274507,100600.0,100590.0,0.00116539]
[1733936261140,0.82516656,100600.0,100590.0,0.00116539]
[1733936263019,0.74816656,100600.0,100590.0,0.00116539]
[1733936263260,0.99396656,100600.0,100590.0,0.00116539]
[1733936263466,0.84396656,100600.0,100590.0,0.00116539]
[1733936263678,0.99396656,100600.0,100590.0,0.00116539]
[1733936263889,1.07376656,100600.0,100590.0,0.00116539]
[1733936264106,1.12166656,100600.0,100590.0,0.00116539]
[1733936265335,1.14466656,100600.0,100590.0,0.00116539]
[1733936266071,0.89886656,100600.0,100590.0,0.00116539]
[1733936269023,0.77423694,100600.0,100590.0,0.00116539]
[1733936269440,0.79493741,100600.0,100590.0,0.00116539]
[1733936270331,0.62423694,100600.0,100590.0,0.00116539]
[1733936271373,0.73808226,100600.0,100590.0,0.00116539]
[1733936274487,0.74816656,100600.0,100590.0,0.00116539]
[1733936275397,0.59816656,100600.0,100590.0,0.00116539]
[1733936275613,0.74816656,100600.0,100590.0,0.00116539]
[1733936276035,0.59816656,100600.0,100590.0,0.00116539]
[1733936276282,0.75115612,100600.0,100590.0,0.00116539]
[1733936276935,0.76337182,100600.0,100590.0,0.00116539]
[1733936278228,0.6495265,100600.0,100590.0,0.00116539]
[1733936278434,0.76337182,100600.0,100590.0,0.00116539]
[1733936280539,0.61337182,100600.0,100590.0,0.00116539]
[1733936280749,0.74237182,100600.0,100590.0,0.00116539]
[1733936282038,0.85621714,100600.0,100590.0,0.00116539]
[1733936282248,0.74237182,100600.0,100590.0,0.00116539]
[1733936282456,0.74237182,100600.0,100590.0,0.00016539]
[1733936282875,0.74337182,100600.0,100590.0,0.00016539]
[1733936283084,0.74137182,100600.0,100590.0,0.00016539]
[1733936283295,0.84145739,100600.0,100590.0,0.00016539]
[1733936283507,0.84145739,100600.0,100590.0,0.00116539]
[1733936283508,0.84645739,100600.0,100590.0,0.00116539]
[1733936283718,0.84745739,100600.0,100590.0,0.00116539]
[1733936283953,0.84145739,100600.0,100590.0,0.00016539]
[1733936284170,0.84045739,100600.0,100590.0,0.00016539]
[1733936284811,0.82903916,100600.0,100590.0,0.00016539]
[1733936285045,0.83803916,100600.0,100590.0,0.00116539]
[1733936285254,0.97104017,100600.0,100590.0,0.00116539]
[1733936285466,1.14837485,100600.0,100590.0,0.00116539]
[1733936285672,0.97104017,100600.0,100570.0,0.0004]
[1733936285881,0.74307926,100590.0,100570.0,0.0004]
[1733936286091,0.01930119,100580.0,100570.0,0.0004]
[1733936286307,0.10030845,100580.0,100570.0,0.0004]
[1733936287595,0.10030845,100580.0,100570.0,0.0471]
[1733936288855,0.10030845,100580.0,100570.0,0.0481]
[1733936289074,0.2518,100590.0,100570.0,0.128]
[1733936289284,0.2518,100590.0,100580.0,0.0809]
[1733936289493,0.2518,100590.0,100580.0,0.180323]
[1733936289708,0.2518,100590.0,100580.0,0.227023]
[1733936290367,0.2468,100590.0,100580.0,0.227023]
[1733936290547,0.003,100590.0,100580.0,0.25239338]
[1733936290784,0.002,100590.0,100580.0,0.25239338]
[1733936291247,0.002,100590.0,100580.0,0.25539338]
[1733936291951,0.02242149,100600.0,100580.0,0.25539338]
[1733936292159,0.02242149,100600.0,100580.0,0.25839338]
[1733936292378,0.64633266,100610.0,100580.0,0.25839338]
[1733936292581,0.76698354,100610.0,100580.0,0.35781238]
[1733936292798,0.76698354,100610.0,100580.0,0.35481238]
[1733936293008,0.76698354,100610.0,100580.0,0.35181238]
[1733936293222,0.76698354,100610.0,100580.0,0.35281238]
[1733936293434,0.002,100600.0,100580.0,0.35281238]
[1733936293663,0.002,100600.0,100580.0,0.35181238]
[1733936293903,0.41496977,100600.0,100580.0,0.1286]
[1733936294113,0.49994345,100600.0,100580.0,0.1286]
[1733936294828,0.29913445,100590.0,100580.0,0.1286]
[1733936295039,0.29913445,100590.0,100580.0,0.0809]
[1733936295911,0.29913445,100590.0,100580.0,0.0819]
[1733936296334,0.29913445,100590.0,100580.0,0.0809]
[1733936296553,0.29913445,100590.0,100580.0,0.0869]
[1733936296987,0.76806462,100600.0,100580.0,0.1341]
[1733936296988,0.2458,100600.0,100580.0,0.1341]
[1733936297205,0.2458,100600.0,100580.0,0.3727377]
[1733936297417,0.2458,100600.0,100590.0,0.0796]
[1733936299201,0.444607,100600.0,100590.0,0.0796]
[1733936299409,0.198807,100600.0,100590.0,0.0796]
[1733936299646,0.198826,100590.0,100580.0,0.1273]
[1733936299856,0.42574507,100600.0,100580.0,0.1273]
[1733936300063,0.62256107,100600.0,100580.0,0.1263]
[1733936300273,0.198826,100590.0,100580.0,0.1263]
[1733936300921,0.198826,100590.0,100580.0,0.1293]
[1733936301131,0.198826,100590.0,100580.0,0.1303]
[1733936302577,0.198826,100590.0,100580.0,0.1293]
[1733936302793,0.198826,100590.0,100580.0,0.1323]
[1733936303731,0.86836107,100600.0,100580.0,0.1323]
[1733936303951,0.34610845,100600.0,100580.0,0.24614532]
[1733936304170,0.2458,100600.0,100580.0,0.4703517]
[1733936304384,0.02009356,100610.0,100590.0,0.29085832]
[1733936304602,0.02009356,100610.0,100590.0,0.177009]
[1733936304811,0.21888256,100610.0,100590.0,0.0776]
[1733936305026,0.02009356,100610.0,100590.0,0.177013]
[1733936305897,0.002,100600.0,100590.0,0.177013]
[1733936306333,0.02009356,100610.0,100590.0,0.4156367]
[1733936306563,0.02709356,100610.0,100600.0,0.3682187]
[1733936307074,0.02609356,100610.0,100600.0,0.3682187]
[1733936307512,0.02009356,100610.0,100600.0,0.3682187]
[1733936307720,0.02209356,100610.0,100600.0,0.3682187]
[1733936308150,0.03334506,100610.0,100600.0,0.3682187]
[1733936309052,0.03134506,100610.0,100600.0,0.3712187]
[1733936309515,0.03134506,100610.0,100600.0,0.3742187]
[1733936309740,0.03134506,100610.0,100600.0,0.1742187]
[1733936310172,0.03134506,100610.0,100600.0,0.2736217]
[1733936310630,0.01141643,100610.0,100600.0,0.2736217]
[1733936310848,0.01141643,100610.0,100600.0,0.52393015]
[1733936311050,0.01141643,100610.0,100600.0,0.52693015]
[1733936312865,0.01141643,100610.0,100600.0,0.57573015]
[1733936313522,0.01141643,100610.0,100600.0,0.664651]
[1733936314577,0.01141643,100610.0,100600.0,0.57573015]
[1733936314785,0.01141643,100610.0,100600.0,0.664651]
[1733936315386,0.01141643,100610.0,100600.0,0.658651]
[1733936315600,0.01241643,100610.0,100600.0,0.58373015]
[1733936316026,0.01241643,100610.0,100600.0,0.57873015]
[1733936316438,0.01241643,100610.0,100600.0,0.674651]
[1733936316858,0.01192453,100610.0,100600.0,0.674651]
[1733936318619,0.01192453,100610.0,100600.0,0.58573015]
[1733936319501,0.01123854,100610.0,100600.0,0.58573015]
[1733936319721,0.01123854,100610.0,100600.0,0.674651]
[1733936319928,0.01123854,100610.0,100600.0,0.32398183]
[1733936320358,0.01123854,100610.0,100600.0,0.04437038]
[1733936320779,0.01123854,100610.0,100600.0,0.019]
[1733936320996,0.21002554,100610.0,100600.0,0.019]
[1733936321209,0.01123854,100610.0,100600.0,0.019]
[1733936321628,0.01123854,100610.0,100600.0,0.012]
[1733936321839,0.01123854,100610.0,100600.0,0.015]
[1733936322297,0.01023854,100610.0,100600.0,0.003]
[1733936322726,0.01023854,100610.0,100600.0,0.005]
[1733936322939,0.01023854,100610.0,100600.0,0.015]
[1733936323158,0.01023854,100610.0,100600.0,0.02]
[1733936323788,0.2285495,100610.0,100600.0,0.02]
[1733936323994,0.0297625,100610.0,100600.0,0.01897574]
[1733936325741,0.2285495,100610.0,100600.0,0.01897574]
[1733936328274,0.0297625,100610.0,100600.0,0.01897574]
[1733936328490,0.0297625,100610.0,100600.0,0.00897574]
[1733936329335,0.2285495,100610.0,100600.0,0.00897574]
[1733936329579,0.32885795,100610.0,100600.0,0.00897574]
[1733936331948,0.13007095,100610.0,100600.0,0.00897574]
[1733936332176,0.0297625,100610.0,100600.0,0.10837874]
[1733936332388,0.0297625,100610.0,100600.0,0.00897574]
[1733936332797,0.0297625,100610.0,100600.0,0.22222406]
[1733936333005,0.0297625,100610.0,100600.0,0.10837874]
[1733936333215,0.0297625,100610.0,100600.0,0.22222406]
[1733936333454,0.0297625,100610.0,100600.0,0.10837874]
[1733936334096,0.0297625,100610.0,100600.0,0.13374912]
[1733936334301,0.0297625,100610.0,100600.0,0.24759444]
[1733936334508,0.0297625,100610.0,100600.0,0.47609444]
[1733936335185,0.0297625,100610.0,100600.0,0.57640289]
[1733936336222,0.0297625,100610.0,100600.0,0.43718719]
[1733936336488,0.0297625,100610.0,100600.0,0.36224912]
[1733936338033,0.0297625,100610.0,100600.0,0.26284612]
[1733936338713,0.0297625,100610.0,100600.0,0.11284612]
[1733936338934,0.0297625,100610.0,100600.0,0.03434612]
[1733936340261,0.0297625,100610.0,100600.0,0.24759444]
[1733936341367,0.01023854,100610.0,100600.0,0.62060289]
[1733936341589,0.01023854,100610.0,100600.0,0.70955027]
[1733936342010,0.01023854,100610.0,100600.0,0.84297134]
[1733936343086,0.01023854,100610.0,100600.0,0.10944612]
[1733936343497,0.01023854,100610.0,100600.0,0.03434612]
[1733936344555,0.01023854,100610.0,100600.0,0.00897574]
[1733936345173,0.01023854,100610.0,100600.0,0.01897574]
[1733936346022,0.20902554,100610.0,100600.0,0.01897574]
[1733936346868,0.42317931,100610.0,100600.0,0.01897574]
[1733936347084,0.54780893,100610.0,100600.0,0.01897574]
[1733936347302,0.67560893,100610.0,100600.0,0.01897574]
[1733936348768,0.97560893,100610.0,100600.0,0.01897574]
[1733936349209,1.06462921,100610.0,100600.0,0.01897574]
[1733936349425,0.97560893,100610.0,100600.0,0.01897574]
[1733936349608,1.06462921,100610.0,100600.0,0.01897574]
[1733936350088,0.15984699,100610.0,100600.0,0.01897574]
[1733936350300,0.35863399,100610.0,100600.0,0.01897574]
[1733936352477,0.59710893,100610.0,100600.0,0.01897574]
[1733936353378,0.84290893,100610.0,100600.0,0.01897574]
[1733936354459,0.72906361,100610.0,100600.0,0.01897574]
[1733936354668,0.25603854,100610.0,100600.0,0.01897574]
[1733936355318,0.45482554,100610.0,100600.0,0.01897574]
[1733936356399,0.20902554,100610.0,100600.0,0.01897574]
[1733936361361,0.20897433,100610.0,100600.0,0.01897574]
[1733936363921,0.59275772,100610.0,100600.0,0.01897574]
[1733936364571,0.68183978,100610.0,100600.0,0.01897574]
[1733936364775,0.59275772,100610.0,100600.0,0.01897574]
[1733936365153,0.74275772,100610.0,100600.0,0.01897574]
[1733936365356,0.98855772,100610.0,100600.0,0.01897574]
[1733936365735,1.07763978,100610.0,100600.0,0.01897574]
[1733936366167,0.98855772,100610.0,100600.0,0.01897574]
[1733936366376,1.07763978,100610.0,100600.0,0.01897574]
[1733936366599,1.21126288,100610.0,100600.0,0.01897574]
[1733936367418,0.198814,100600.0,100560.0,0.56079425]
[1733936367638,0.49794145,100600.0,100570.0,0.12480138]
[1733936368079,0.69676545,100600.0,100570.0,0.099431]
[1733936368433,0.69676545,100600.0,100560.0,0.73517032]
[1733936368656,0.198827,100590.0,100570.0,0.02537038]
[1733936368861,0.198827,100590.0,100570.0,0.02637038]
[1733936369037,0.38882245,100600.0,100570.0,0.12579738]
[1733936369245,0.58763745,100600.0,100570.0,0.3390707]
[1733936369623,0.31012245,100600.0,100570.0,0.4384987]
[1733936369823,0.31012245,100600.0,100570.0,0.3390707]
[1733936370039,0.31012245,100600.0,100570.0,0.4384987]
[1733936370254,0.30812245,100600.0,100570.0,0.4384987]
[1733936370488,0.30812245,100600.0,100570.0,0.3390707]
[1733936370690,0.29912245,100600.0,100570.0,0.4135707]
[1733936370895,0.30412245,100600.0,100570.0,0.4135707]
[1733936371104,0.009,100590.0,100570.0,0.4135707]
[1733936371281,0.50293645,100600.0,100570.0,0.4135707]
[1733936371710,0.51193645,100600.0,100570.0,0.4135707]
[1733936371928,0.51193645,100600.0,100570.0,0.4135717]
[1733936372091,0.50693645,100600.0,100570.0,0.4135717]
[1733936372467,0.52410614,100600.0,100570.0,0.5129997]
[1733936372669,0.32529214,100600.0,100570.0,0.5129997]
[1733936373295,0.003,100590.0,100570.0,0.5129997]
[1733936373902,0.32529214,100600.0,100570.0,0.5129997]
[1733936374108,0.32529214,100600.0,100570.0,0.4135707]
[1733936374315,0.32129214,100600.0,100570.0,0.5129987]
[1733936374761,0.009,100590.0,100570.0,0.4135707]
[1733936374915,0.32129214,100600.0,100570.0,0.5129987]
[1733936375121,0.32129214,100600.0,100570.0,0.4135707]
[1733936375357,0.33029214,100600.0,100570.0,0.4135707]
[1733936375563,0.52910614,100600.0,100570.0,0.4135707]
[1733936376463,0.52410614,100600.0,100570.0,0.4135707]
[1733936376891,0.003,100590.0,100570.0,0.4135717]
[1733936377097,0.003,100590.0,100570.0,0.29972638]
[1733936377262,0.52410614,100600.0,100570.0,0.29972638]
[1733936377705,0.52910614,100600.0,100570.0,0.29972638]
[1733936378101,0.71892514,100600.0,100570.0,0.29973038]
[1733936378313,0.008,100590.0,100570.0,0.20029738]
[1733936378557,0.008,100590.0,100570.0,0.29973038]
[1733936378835,0.71892314,100600.0,100570.0,0.29973038]
[1733936379250,0.52010614,100600.0,100570.0,0.29973038]
[1733936379413,0.32129214,100600.0,100570.0,0.38884761]
[1733936379595,0.51510614,100600.0,100570.0,0.38884761]
[1733936379791,0.003,100590.0,100570.0,0.28941861]
[1733936379993,0.003,100590.0,100570.0,0.20029738]
[1733936380204,0.003,100590.0,100570.0,0.29972638]
[1733936380383,0.52410614,100600.0,100570.0,0.29972638]
[1733936380589,0.52410614,100600.0,100570.0,0.38884761]
[1733936380785,0.52910614,100600.0,100570.0,0.48827661]
[1733936381033,0.33029214,100600.0,100570.0,0.38884761]
[1733936381273,0.32129214,100600.0,100570.0,0.48827661]
[1733936381588,0.008,100590.0,100570.0,0.48827661]
[1733936381795,0.008,100590.0,100570.0,0.4882841]
[1733936382202,0.008,100590.0,100570.0,0.3888551]
[1733936382610,0.008,100590.0,100570.0,0.52254969]
[1733936382811,0.008,100590.0,100570.0,0.62197769]
[1733936383029,0.011,100590.0,100570.0,0.73582201]
[1733936383236,0.011,100590.0,100580.0,0.3144387]
[1733936383449,0.011,100590.0,100580.0,0.50387687]
[1733936383450,0.003,100590.0,100580.0,0.50387687]
[1733936383660,0.003,100590.0,100580.0,0.99108165]
[1733936383908,0.011,100590.0,100580.0,1.32152431]
[1733936384140,0.008,100590.0,100580.0,1.44895197]
[1733936384342,0.008,100590.0,100580.0,1.66509149]
[1733936384548,0.01018733,100610.0,100600.0,0.25747038]
[1733936384764,0.01018733,100610.0,100600.0,0.80376815]
[1733936385173,0.01018733,100610.0,100600.0,1.20480176]
[1733936385384,0.01018733,100610.0,100600.0,1.20477348]
[1733936386227,0.01018733,100610.0,100600.0,1.20461081]
[1733936386436,0.01018733,100610.0,100600.0,0.98188093]
[1733936387060,0.01018733,100610.0,100600.0,0.98688093]
[1733936387270,0.01018733,100610.0,100600.0,0.87303561]
[1733936387491,0.01118733,100610.0,100600.0,0.87703561]
[1733936387704,0.01118733,100610.0,100600.0,0.69885171]
[1733936388715,0.01118733,100610.0,100600.0,0.56521378]
[1733936389122,0.01118733,100610.0,100600.0,0.009]
[1733936390219,0.01118733,100610.0,100600.0,0.2575587]
[1733936391142,0.01118733,100610.0,100600.0,0.34665065]
[1733936391346,0.01118733,100610.0,100600.0,0.2575587]
[1733936398336,0.01118733,100610.0,100600.0,0.14371338]
[1733936401727,0.01118733,100610.0,100600.0,0.009]
[1733936402228,0.23297433,100610.0,100600.0,0.009]
[1733936402436,0.31407433,100610.0,100600.0,0.009]
[1733936402645,0.41438278,100610.0,100600.0,0.009]
[1733936402848,0.66148478,100610.0,100580.0,0.109358]
[1733936403055,0.66148478,100610.0,100580.0,0.13472838]
[1733936403273,0.66148478,100610.0,100600.0,0.003]
[1733936403487,0.66148478,100610.0,100600.0,0.002]
[1733936403693,0.86028678,100610.0,100580.0,0.13473438]
[1733936403897,0.66148478,100610.0,100600.0,0.001]
[1733936404730,0.86028678,100610.0,100580.0,0.13473438]
[1733936404947,0.66148478,100610.0,100580.0,0.13473438]
[1733936405149,0.86028678,100610.0,100580.0,0.13473438]
[1733936405351,0.66148478,100610.0,100580.0,0.13473438]
[1733936405766,0.14058733,100610.0,100600.0,0.11384532]
[1733936405971,0.01018733,100610.0,100600.0,0.2485587]
[1733936406401,0.01018733,100610.0,100600.0,0.49886715]
[1733936406619,0.01018733,100610.0,100600.0,0.58186715]
[1733936407094,0.01018733,100610.0,100600.0,0.58486715]
[1733936407520,0.01018733,100610.0,100600.0,1.11592046]
[1733936407726,0.01118733,100610.0,100600.0,1.11992046]
[1733936408148,0.01118733,100610.0,100600.0,1.00607514]
[1733936408373,0.01118733,100610.0,100600.0,0.87251765]
[1733936408587,0.01118733,100610.0,100600.0,0.6691295]
[1733936408814,0.01118733,100610.0,100600.0,0.09296472]
[1733936409022,0.01018733,100610.0,100600.0,0.006]
[1733936409228,0.01018733,100610.0,100600.0,0.115343]
[1733936409433,0.01418733,100610.0,100600.0,0.109343]
[1733936409867,0.01618733,100610.0,100600.0,0.115343]
[1733936410120,0.01618733,100610.0,100600.0,0.25555268]
[1733936410345,0.01118733,100610.0,100600.0,0.2485587]
[1733936410554,0.01218733,100610.0,100600.0,0.2575587]
[1733936410775,0.01218733,100610.0,100600.0,0.50786715]
[1733936411624,0.01210836,100610.0,100600.0,0.50786715]
[1733936412261,0.01210836,100610.0,100600.0,0.59683187]
[1733936412592,0.01210836,100610.0,100600.0,0.35786715]
[1733936412794,0.01210836,100610.0,100600.0,0.03437038]
[1733936414240,0.01210836,100610.0,100600.0,0.009]
[1733936414424,0.03510836,100610.0,100600.0,0.009]
[1733936416905,0.57514913,100610.0,100600.0,0.009]
[1733936417191,0.69977875,100610.0,100600.0,0.009]
[1733936417497,0.58593343,100610.0,100600.0,0.009]
[1733936418361,0.58593343,100610.0,100600.0,0.005]
[1733936418568,0.58593343,100610.0,100600.0,0.007]
[1733936418991,0.26251681,100610.0,100600.0,0.007]
[1733936419419,0.16220836,100610.0,100600.0,0.007]
[1733936419624,0.13720836,100610.0,100600.0,0.002]
[1733936420032,0.13720836,100610.0,100600.0,0.003]
[1733936420233,0.33599536,100610.0,100600.0,0.003]
[1733936420433,0.13720836,100610.0,100600.0,0.003]
[1733936420785,0.16020836,100610.0,100600.0,0.003]
[1733936421053,0.01010836,100610.0,100600.0,0.2515587]
[1733936421882,0.01010836,100610.0,100600.0,0.25151855]
[1733936422032,0.01010836,100610.0,100600.0,0.351827]
[1733936422254,0.01010836,100610.0,100600.0,0.501827]
[1733936422707,0.01010836,100610.0,100600.0,0.579027]
[1733936422909,0.01010836,100610.0,100600.0,0.66804391]
[1733936423037,0.01010836,100610.0,100600.0,0.97764326]
[1733936423411,0.01010836,100610.0,100600.0,1.19918555]
[1733936423832,0.01110836,100610.0,100600.0,1.11416864]
[1733936424049,0.01010836,100610.0,100600.0,1.11016864]
[1733936424256,0.01110836,100610.0,100600.0,1.11416864]
[1733936424585,0.01110836,100610.0,100600.0,1.19918779]
[1733936424800,0.01110836,100610.0,100600.0,1.20118779]
[1733936425381,0.327029,100640.0,100610.0,0.37414838]
[1733936425699,0.1283,100640.0,100610.0,0.68768915]
[1733936426383,0.327028,100640.0,100610.0,0.68768915]
[1733936426824,0.1313,100640.0,100620.0,0.099383]
[1733936427469,0.1313,100640.0,100620.0,0.21322832]
[1733936427677,0.1313,100640.0,100610.0,0.7767063]
[1733936427857,0.14762449,100640.0,100610.0,0.7767063]
[1733936428084,0.14462449,100640.0,100610.0,0.7767063]
[1733936428532,0.14762449,100640.0,100610.0,0.7767063]
[1733936428867,0.34635349,100640.0,100610.0,0.46408498]
[1733936429075,0.34635349,100640.0,100610.0,0.56347298]
[1733936429477,0.34635349,100640.0,100610.0,0.66286098]
[1733936429704,0.34335349,100640.0,100610.0,0.66286198]
[1733936430257,0.34635349,100640.0,100610.0,0.56347298]
[1733936430414,0.34635349,100640.0,100610.0,0.7767063]
[1733936430588,0.34635349,100640.0,100610.0,0.6773183]
[1733936430792,0.64539794,100640.0,100610.0,0.36377653]
[1733936431000,0.84414194,100640.0,100610.0,0.17537038]
[1733936431232,0.0755,100620.0,100600.0,0.31335446]
[1733936431401,0.0755,100620.0,100600.0,0.33818063]
[1733936431623,0.0755,100620.0,100600.0,0.33817563]
[1733936431787,0.0755,100620.0,100600.0,0.23877763]
[1733936432240,0.321167,100620.0,100600.0,0.00016493]
[1733936432456,0.519945,100620.0,100600.0,0.00416493]
[1733936432624,0.321167,100620.0,100600.0,0.00416493]
[1733936432822,0.1224,100620.0,100600.0,0.10356793]
[1733936433054,0.1224,100620.0,100600.0,0.20297093]
[1733936433256,0.1224,100620.0,100600.0,0.10356793]
[1733936433404,0.1224,100620.0,100600.0,0.00416493]
[1733936433618,0.1224,100620.0,100600.0,0.10356793]
[1733936434020,0.1234,100620.0,100600.0,0.01016493]
[1733936434511,0.13921736,100620.0,100600.0,0.01016493]
[1733936434969,0.001,100620.0,100610.0,0.2386087]
[1733936435338,0.16142587,100630.0,100610.0,0.2386087]
[1733936435540,0.16142587,100630.0,100620.0,0.099383]
[1733936435970,0.16142587,100630.0,100620.0,0.12475338]
[1733936436368,0.16142587,100630.0,100620.0,0.02537038]
[1733936437370,0.16142587,100630.0,100610.0,0.12575538]
[1733936437563,1.01626574,100640.0,100610.0,0.17537038]
[1733936437836,0.80398387,100640.0,100610.0,0.27476338]
[1733936438042,0.80398387,100640.0,100620.0,0.001]
[1733936438244,0.80398387,100640.0,100610.0,0.37615238]
[1733936438448,0.60524587,100640.0,100610.0,0.4899977]
[1733936438651,0.60524587,100640.0,100610.0,0.5883857]
[1733936438823,0.61561005,100640.0,100610.0,0.5883857]
[1733936439258,0.61561005,100640.0,100610.0,0.4889927]
[1733936439665,0.3165696,100640.0,100620.0,0.099383]
[1733936440038,0.3165696,100640.0,100610.0,0.6783193]
[1733936440256,0.3195696,100640.0,100610.0,0.6783193]
[1733936440451,0.3165696,100640.0,100610.0,0.6773193]
[1733936440669,0.35387573,100640.0,100610.0,0.6773193]
[1733936440856,0.198748,100630.0,100610.0,0.26438953]
[1733936441114,0.198748,100630.0,100600.0,0.82745195]
[1733936441361,0.081,100620.0,100600.0,0.52550966]
[1733936441623,0.081,100620.0,100600.0,0.34747583]
[1733936442069,0.081,100620.0,100600.0,0.44687383]
[1733936442277,0.081,100620.0,100610.0,0.002]
[1733936442683,0.17770845,100630.0,100610.0,0.099393]
[1733936443716,0.17770845,100630.0,100600.0,0.66411615]
[1733936443945,0.17770845,100630.0,100610.0,0.001]
[1733936444342,0.37645645,100630.0,100610.0,0.001]
[1733936444553,0.37645645,100630.0,100610.0,0.003]
[1733936444819,0.57521345,100630.0,100610.0,0.003]
[1733936445043,0.77397945,100630.0,100610.0,0.003]
[1733936445159,0.245667,100620.0,100610.0,0.003]
[1733936445354,0.0469,100620.0,100610.0,0.003]
[1733936445793,0.1238,100620.0,100610.0,0.003]
[1733936445993,0.322567,100620.0,100610.0,0.001]
[1733936446196,0.345567,100620.0,100610.0,0.001]
[1733936446421,0.345567,100620.0,100600.0,0.00016493]
[1733936446628,0.345567,100620.0,100610.0,0.001]
[1733936446841,0.1468,100620.0,100610.0,0.001]
[1733936447254,0.24102587,100630.0,100610.0,0.2396087]
[1733936447461,0.24102587,100630.0,100620.0,0.099383]
[1733936447462,0.16142587,100630.0,100620.0,0.099383]
[1733936447690,0.17179045,100630.0,100620.0,0.099383]
[1733936447907,0.17149227,100630.0,100620.0,0.099383]
[1733936448318,0.17149227,100630.0,100610.0,0.52739885]
[1733936448521,0.17149227,100630.0,100620.0,0.099383]
[1733936448735,0.17149227,100630.0,100610.0,0.41354853]
[1733936448948,0.17149227,100630.0,100620.0,0.099383]
[1733936449386,0.17149227,100630.0,100620.0,0.12475338]
[1733936449591,0.01036458,100630.0,100620.0,0.12475338]
[1733936449907,0.01336458,100630.0,100620.0,0.12475338]
[1733936450115,0.01336458,100630.0,100620.0,0.20135338]
[1733936450515,0.01036458,100630.0,100620.0,0.20135338]
[1733936450839,0.01336458,100630.0,100620.0,0.20135338]
[1733936451038,0.01036458,100630.0,100620.0,0.20135338]
[1733936451193,0.01036458,100630.0,100620.0,0.3151987]
[1733936451436,0.01036458,100630.0,100620.0,0.4661987]
[1733936451893,0.01627955,100640.0,100620.0,0.4681987]
[1733936452098,0.01627955,100640.0,100620.0,0.55311338]
[1733936452248,0.14146371,100650.0,100630.0,0.099372]
[1733936452456,0.15782967,100650.0,100630.0,0.12473638]
[1733936452894,0.15782967,100650.0,100630.0,0.22410338]
[1733936453091,0.15782967,100650.0,100630.0,0.32347138]
[1733936453280,0.15782967,100650.0,100630.0,0.22410338]
[1733936453483,0.16082967,100650.0,100630.0,0.22410338]
[1733936454110,0.07962967,100650.0,100640.0,0.099364]
[1733936454921,0.02972967,100650.0,100640.0,0.21320932]
[1733936455171,0.02972967,100650.0,100640.0,0.3164797]
[1733936455172,0.01336371,100650.0,100640.0,0.3164797]
[1733936455369,0.01352806,100650.0,100640.0,0.3164797]
[1733936455658,0.00016435,100650.0,100640.0,0.20263438]
[1733936455853,0.00316435,100650.0,100640.0,0.20263438]
[1733936456295,0.00016435,100650.0,100640.0,0.20263438]
[1733936456469,0.00116435,100650.0,100640.0,0.20863438]
[1733936456879,0.00116435,100650.0,100640.0,0.3224797]
[1733936457451,0.00116435,100650.0,100640.0,0.3244797]
[1733936457675,0.00116435,100650.0,100640.0,0.21063438]
[1733936457926,0.00116435,100650.0,100640.0,0.20863438]
[1733936458370,0.00116435,100650.0,100640.0,0.21263438]
[1733936459160,0.00116435,100650.0,100640.0,0.4764797]
[1733936459770,0.00116435,100650.0,100640.0,0.01]
[1733936459971,0.27777235,100650.0,100640.0,0.01]
[1733936460227,0.07906435,100650.0,100640.0,0.01]